bitfinex/quotes_ETHUSD_20240926
["timestamp","ask_amount","ask_price","bid_price","bid_amount"]
[1727351682197,3.79683,2633.8,2633.6,0.07052609]
[1727351682396,3.79657,2634.0,2633.6,0.07052609]
[1727351683006,3.79657,2634.0,2633.6,3.86758609]
[1727351687032,3.79657,2634.0,2633.6,0.07052609]
[1727351687202,3.79647,2634.1,2633.6,0.07052609]
[1727351687203,3.79665,2633.9,2633.6,0.07052609]
[1727351690713,3.79658,2634.0,2633.6,0.07052609]
[1727351690947,3.79668,2633.9,2633.6,0.07052609]
[1727351692156,3.7968,2633.8,2633.6,0.07052609]
[1727351692354,3.79693,2633.7,2633.6,0.07052609]
[1727351693071,5.54377201,2633.7,2633.6,0.07052609]
[1727351693221,6.30314501,2633.7,2633.6,0.07052609]
[1727351693421,6.34154501,2633.7,2633.6,0.07052609]
[1727351693621,3.79722,2633.5,2633.4,0.0384425]
[1727351693935,4.8111145,2633.5,2633.4,0.0384425]
[1727351694159,6.55795651,2633.5,2633.4,0.0384425]
[1727351699360,6.59635651,2633.5,2633.4,0.0384425]
[1727351699722,10.14635651,2633.5,2633.4,0.0384425]
[1727351706473,7.8495145,2633.5,2633.4,0.0384425]
[1727351706782,3.79722,2633.5,2633.4,0.0384425]
[1727351707140,1.74684201,2633.5,2633.4,0.0384425]
[1727351707339,5.54406201,2633.5,2633.4,0.10610017]
[1727351707568,5.54406201,2633.5,2633.4,0.0384425]
[1727351707870,6.48201921,2633.5,2633.4,0.10610017]
[1727351708075,6.48201921,2633.5,2633.4,0.0384425]
[1727351708976,3.79722,2633.5,2633.4,0.1060218]
[1727351709182,3.79722,2633.5,2633.4,0.0384425]
[1727351709361,3.79722,2633.5,2633.4,0.1060218]
[1727351709565,3.79722,2633.5,2633.4,0.0384425]
[1727351709745,3.79722,2633.5,2633.4,0.1060218]
[1727351709944,3.79722,2633.5,2633.4,0.0384425]
[1727351710144,3.79722,2633.5,2633.4,0.1060218]
[1727351710379,3.79722,2633.5,2633.4,0.0384425]
[1727351710682,3.79722,2633.5,2633.4,0.1060218]
[1727351711443,3.79695,2633.7,2633.5,0.8019]
[1727351711723,3.79673,2633.9,2633.5,0.8019]
[1727351711851,3.79687,2633.8,2633.6,0.06741481]
[1727351712745,3.79693,2633.7,2633.6,0.06741481]
[1727351715993,3.79687,2633.8,2633.6,0.06741481]
[1727351716292,3.79693,2633.7,2633.6,0.06741481]
[1727351717195,7.59377,2633.8,2633.6,0.06741481]
[1727351717498,3.79687,2633.8,2633.6,0.06741481]
[1727351717694,7.59377,2633.8,2633.6,0.06741481]
[1727351717904,3.79693,2633.7,2633.6,0.06741481]
[1727351719500,1.74684201,2633.9,2633.6,0.06741481]
[1727351719501,3.79665,2633.9,2633.6,0.06741481]
[1727351719658,3.79665,2633.9,2633.7,0.8154]
[1727351719862,3.79665,2633.9,2633.8,0.06669621]
[1727351720063,3.79639,2634.1,2633.7,0.8154]
[1727351720358,3.79656,2634.0,2633.8,0.06669621]
[1727351720557,3.79665,2633.9,2633.8,0.06669621]
[1727351720899,3.79665,2633.9,2633.8,0.06650035]
[1727351721069,3.79665,2633.9,2633.7,0.8154]
[1727351721275,3.79665,2633.9,2633.8,0.06647797]
[1727351721490,3.79665,2633.9,2633.7,0.8154]
[1727351721991,3.79665,2633.9,2633.8,0.06647797]
[1727351722494,3.79665,2633.9,2633.7,0.8154]
[1727351722699,3.79665,2633.9,2633.8,0.06647797]
[1727351722996,3.79637,2634.1,2633.7,0.8154]
[1727351723176,3.79637,2634.1,2633.8,0.06647797]
[1727351723586,3.79637,2634.1,2633.7,1.276639]
[1727351723788,3.79637,2634.1,2633.9,0.06639575]
[1727351723985,3.79637,2634.1,2633.8,0.06647797]
[1727351724181,3.79637,2634.1,2634.0,0.06631353]
[1727351724391,3.7965,2634.0,2633.9,0.06639575]
[1727351724579,3.7965,2634.0,2633.7,0.8154]
[1727351725696,3.79665,2633.9,2633.7,0.8154]
[1727351725863,3.7965,2634.0,2633.7,0.8154]
[1727351729603,3.79669,2633.9,2633.7,0.8154]
[1727351730581,1.74684201,2634.1,2633.7,0.8154]
[1727351730772,3.79698,2633.7,2633.5,0.7993]
[1727351731675,3.79693,2633.7,2633.5,0.7993]
[1727351731874,3.79708,2633.6,2633.5,0.7993]
[1727351734894,7.59396,2633.7,2633.5,0.7993]
[1727351735507,3.79693,2633.7,2633.5,0.7993]
[1727351735815,3.79671,2633.9,2633.5,4.59646]
[1727351735985,3.79671,2633.9,2633.5,1.64251425]
[1727351736184,3.79671,2633.9,2633.6,0.06639067]
[1727351740095,3.79654,2634.0,2633.6,3.86345067]
[1727351740423,3.79654,2634.0,2633.6,0.06639067]
[1727351740585,3.79665,2633.9,2633.6,0.06639067]
[1727351744020,3.79682,2633.8,2633.6,0.06639067]
[1727351744419,3.79679,2633.8,2633.6,0.06639067]
[1727351744582,3.79688,2633.8,2633.6,0.06639067]
[1727351744923,3.79665,2633.9,2633.6,0.06639067]
[1727351744924,3.79693,2633.7,2633.6,0.06639067]
[1727351747217,5.54349201,2633.9,2633.6,0.06639067]
[1727351747435,3.79685,2633.8,2633.6,0.06639067]
[1727351749694,2.30501421,2634.1,2633.6,0.06639067]
[1727351749895,3.79672,2633.9,2633.6,0.06639067]
[1727351750612,3.79657,2634.0,2633.7,0.7821]
[1727351750816,3.79657,2634.0,2633.7,0.84850913]
[1727351751331,7.59318,2634.0,2633.7,0.84850913]
[1727351753234,7.59315,2634.0,2633.7,0.84850913]
[1727351753529,7.59318,2634.0,2633.7,0.84850913]
[1727351755734,3.79657,2634.0,2633.7,0.84850913]
[1727351755920,7.59321,2634.0,2633.7,0.84850913]
[1727351756436,3.79679,2633.8,2633.7,0.06640913]
[1727351758511,3.79694,2633.7,2633.4,0.8613425]
[1727351758837,4.7309862,2633.7,2633.4,0.8613425]
[1727351759942,3.7968,2633.8,2633.4,0.8613425]
[1727351763128,3.79668,2633.9,2633.4,4.6586225]
[1727351763636,7.59346,2633.9,2633.4,4.6586225]
[1727351764201,3.79668,2633.9,2633.4,4.6586225]
[1727351764407,3.79682,2633.8,2633.4,4.6586225]
[1727351765048,3.79668,2633.9,2633.4,4.6586225]
[1727351765207,7.59346,2633.9,2633.4,4.6586225]
[1727351765406,3.79668,2633.9,2633.4,4.6586225]
[1727351765639,3.79679,2633.8,2633.4,4.6586225]
[1727351766219,3.79679,2633.8,2633.5,0.06654004]
[1727351767557,3.79707,2633.7,2633.5,0.06654004]
[1727351767725,3.79708,2633.6,2633.5,0.06654004]
[1727351770159,4.38548,2633.6,2633.5,0.06654004]
[1727351772249,3.79722,2633.5,2633.4,0.0384425]
[1727351772544,6.91670921,2633.5,2633.4,0.0384425]
[1727351774051,6.91670921,2633.5,2633.4,0.10531099]
[1727351775346,6.91670921,2633.5,2633.4,0.0384425]
[1727351776271,7.46670921,2633.5,2633.4,0.0384425]
[1727351776662,10.50510921,2633.5,2633.4,0.0384425]
[1727351777677,13.29773641,2633.5,2633.4,0.0384425]
[1727351778180,13.29515929,2633.5,2633.4,0.0384425]
[1727351778478,10.50510921,2633.5,2633.4,0.0384425]
[1727351783459,8.7582672,2633.5,2633.4,0.0384425]
[1727351783653,10.50510921,2633.5,2633.4,0.0384425]
[1727351784778,10.47227626,2633.5,2633.4,0.0384425]
[1727351786585,10.43387626,2633.5,2633.4,0.0384425]
[1727351787587,10.47227626,2633.5,2633.4,0.0384425]
[1727351798069,10.43387626,2633.5,2633.4,0.0384425]
[1727351798288,9.06122906,2633.5,2633.4,0.0384425]
[1727351802903,9.09962906,2633.5,2633.4,0.0384425]
[1727351814805,11.88739091,2633.5,2633.4,0.0384425]
[1727351817434,11.89080393,2633.5,2633.4,0.0384425]
[1727351817633,14.16899285,2633.5,2633.4,0.0384425]
[1727351819540,11.33941798,2633.5,2633.4,0.0384425]
[1727351820048,14.13059285,2633.5,2633.4,0.0384425]
[1727351821131,14.1318236,2633.5,2633.4,0.0384425]
[1727351821326,11.33941798,2633.5,2633.4,0.0384425]
[1727351821556,14.13233807,2633.5,2633.4,0.0384425]
[1727351821864,11.33941798,2633.5,2633.4,0.0384425]
[1727351822561,14.13273286,2633.5,2633.4,0.0384425]
[1727351822717,11.33941798,2633.5,2633.4,0.0384425]
[1727351827831,14.13370381,2633.5,2633.4,0.0384425]
[1727351828032,14.13363848,2633.5,2633.4,0.0384425]
[1727351828246,11.33941798,2633.5,2633.4,0.0384425]
[1727351831987,11.37781798,2633.5,2633.4,0.0384425]
[1727351835860,11.33941798,2633.5,2633.4,0.0384425]
[1727351840066,7.31438705,2633.5,2633.4,0.0384425]
[1727351840400,9.06122906,2633.5,2633.4,0.8542425]
[1727351841703,8.51122906,2633.5,2633.4,0.8542425]
[1727351841878,9.06122906,2633.5,2633.4,0.8542425]
[1727351843612,11.00625157,2633.5,2633.4,0.8542425]
[1727351846214,11.00625157,2633.5,2633.4,0.0384425]
[1727351846716,11.04465157,2633.5,2633.4,0.0384425]
[1727351848905,14.34622879,2633.5,2633.4,0.0384425]
[1727351852136,14.3456281,2633.5,2633.4,0.0384425]
[1727351852510,11.04465157,2633.5,2633.4,0.0384425]
[1727351853736,12.59815153,2633.5,2633.4,0.0384425]
[1727351854034,10.49465157,2633.5,2633.4,0.0384425]
[1727351854618,13.79499354,2633.5,2633.4,0.0384425]
[1727351855220,14.34499354,2633.5,2633.4,0.0384425]
[1727351855415,11.04465157,2633.5,2633.4,0.0384425]
[1727351855623,14.3451222,2633.5,2633.4,0.0384425]
[1727351856506,11.04465157,2633.5,2632.7,0.7966]
[1727351856711,2.0,2633.6,2632.7,0.7966]
[1727351856712,6.09507201,2632.8,2632.7,0.7966]
[1727351860854,3.79823,2632.8,2632.7,0.7966]
[1727351861031,3.79817,2632.9,2632.7,0.7966]
[1727351861360,3.79817,2632.9,2632.8,0.84123591]
[1727351861361,6.79817,2632.9,2632.8,0.84123591]
[1727351862357,8.54501201,2632.9,2632.8,0.84123591]
[1727351862524,8.54501201,2632.9,2632.8,0.7742]
[1727351867858,8.54501201,2632.9,2632.8,0.84123591]
[1727351867859,6.79817,2632.9,2632.8,0.84123591]
[1727351868428,3.79768,2633.2,2632.8,0.84123591]
[1727351868429,3.79775,2633.2,2632.8,0.84123591]
[1727351868668,3.79775,2633.2,2633.0,0.7727]
[1727351868829,3.7978,2633.1,2633.0,0.7727]
[1727351869031,3.7978,2633.1,2633.0,0.83929727]
[1727351869872,3.79759,2633.3,2633.0,0.83929727]
[1727351870364,3.79767,2633.2,2633.0,0.83929727]
[1727351871058,3.79767,2633.2,2633.0,0.57674436]
[1727351871267,3.79767,2633.2,2633.1,0.8199]
[1727351871433,3.79767,2633.2,2633.1,0.88637585]
[1727351875140,3.79759,2633.3,2633.1,0.88637585]
[1727351875641,7.59521,2633.3,2633.1,0.88637585]
[1727351875841,7.59521,2633.3,2633.1,0.06647585]
[1727351876031,5.54450201,2633.2,2633.1,0.06647585]
[1727351876231,3.79804,2633.0,2632.8,0.7625]
[1727351876734,3.79809,2632.9,2632.8,0.7625]
[1727351886156,3.79809,2632.9,2632.8,0.82916114]
[1727351895275,3.75050129,2632.9,2632.8,0.82916114]
[1727351895644,3.79838,2632.7,2632.6,0.8059425]
[1727351896052,3.79838,2632.7,2632.6,0.87277383]
[1727351911393,3.79838,2632.7,2632.6,0.10527383]
[1727351912895,3.79809,2632.9,2632.6,0.10527383]
[1727351913262,7.59632,2632.9,2632.6,0.10527383]
[1727351913466,3.79838,2632.7,2632.6,0.10527383]
[1727351913663,3.79823,2632.8,2632.6,0.10527383]
[1727351915904,3.79815,2632.9,2632.6,0.10527383]
[1727351916469,3.79825,2632.8,2632.6,0.10527383]
[1727351917698,3.79811,2632.9,2632.7,0.7559]
[1727351917886,7.59628,2632.9,2632.7,0.46598338]
[1727351918093,3.79811,2632.9,2632.8,0.06672827]
[1727351918498,3.79811,2632.9,2632.6,0.0384425]
[1727351918686,3.79811,2632.9,2632.8,0.06672827]
[1727351919214,3.79811,2632.9,2632.6,0.0384425]
[1727351919386,3.79811,2632.9,2632.8,0.06672827]
[1727351919582,3.79811,2632.9,2632.6,0.49774275]
[1727351919905,3.79811,2632.9,2632.8,0.06666674]
[1727351920093,3.79811,2632.9,2632.6,0.49774275]
[1727351920094,3.79811,2632.9,2632.7,0.06674903]
[1727351920273,3.79811,2632.9,2632.6,0.49774275]
[1727351920274,3.79811,2632.9,2632.8,0.06666674]
[1727351920669,3.79811,2632.9,2632.6,0.49774275]
[1727351920866,3.79811,2632.9,2632.8,0.06666674]
[1727351921067,3.79811,2632.9,2632.7,0.57197931]
[1727351921274,3.79811,2632.9,2632.8,0.06666674]
[1727351922047,3.79811,2632.9,2632.7,0.50523028]
[1727351922185,3.79811,2632.9,2632.8,0.06666674]
[1727351922672,3.79811,2632.9,2632.6,0.0384425]
[1727351922872,3.79829,2632.8,2632.6,0.0384425]
[1727351923073,3.79829,2632.8,2632.7,0.06674903]
[1727351923514,3.83615,2633.2,2632.7,0.06674903]
[1727351923677,3.0,2633.1,2632.7,0.06674903]
[1727351923881,3.0,2633.1,2632.7,0.53270618]
[1727351924108,3.79795,2633.0,2632.7,0.53270618]
[1727351926186,7.59602,2633.0,2632.7,0.53270618]
[1727351926516,7.59597,2633.0,2632.7,0.06674903]
[1727351926688,0.0384,2633.2,2632.8,0.7735]
[1727351926689,3.79775,2633.2,2632.8,0.7735]
[1727351926894,7.59552,2633.2,2632.8,0.7735]
[1727351927088,7.59552,2633.2,2632.9,0.53804173]
[1727351927089,3.79789,2633.1,2632.9,0.53804173]
[1727351927290,1.78524201,2633.4,2632.9,4.61685445]
[1727351927291,3.79745,2633.4,2632.9,4.61685445]
[1727351927600,0.0384,2634.1,2633.6,3.79701]
[1727351927805,0.0384,2634.1,2633.3,1.74684201]
[1727351927806,3.79643,2634.1,2633.8,0.7523]
[1727351927991,3.79643,2634.1,2633.9,0.46251514]
[1727351928194,3.79643,2634.1,2633.8,0.7523]
[1727351928437,3.79643,2634.1,2633.9,0.06566127]
[1727351928926,3.79643,2634.1,2633.8,0.7523]
[1727351929230,3.79643,2634.1,2633.9,0.06538172]
[1727351929594,3.79581,2634.5,2634.0,4.57253]
[1727351929936,4.54269716,2635.2,2634.0,4.57253]
[1727351929937,3.7953,2634.9,2634.3,0.7761]
[1727351930289,3.79572,2634.6,2634.3,0.7761]
[1727351930494,3.79572,2634.6,2634.4,0.06422718]
[1727351930495,3.79578,2634.5,2634.4,0.06422718]
[1727351931096,3.79605,2634.4,2633.8,4.56959]
[1727351931606,3.79609,2634.3,2633.8,4.56959]
[1727351932326,3.79609,2634.3,2633.8,0.7729]
[1727351933448,3.79649,2634.1,2633.5,4.58205]
[1727351933737,3.79667,2633.9,2633.5,0.7849]
[1727351935045,3.79657,2634.0,2633.5,0.7849]
[1727351935335,3.79657,2634.0,2633.5,4.58212]
[1727351937081,3.79657,2634.0,2633.5,5.420061]
[1727351938517,3.79651,2634.0,2633.6,3.79707]
[1727351939038,3.79651,2634.0,2633.5,5.420051]
[1727351939359,7.59294,2634.1,2633.6,3.79706]
[1727351939867,3.79645,2634.1,2633.6,7.59404]
[1727351940017,3.79645,2634.1,2633.6,8.5156781]
[1727351940213,3.79627,2634.2,2633.8,3.79678]
[1727351940618,3.79627,2634.2,2633.7,3.79687]
[1727351941269,3.79627,2634.2,2633.6,3.79698]
[1727351941465,3.79653,2634.0,2633.6,3.79698]
[1727351941629,3.79643,2634.1,2633.6,3.79698]
[1727351941831,3.79653,2634.0,2633.6,3.79698]
[1727351942030,3.79653,2634.0,2633.6,4.6349]
[1727351942473,3.79653,2634.0,2633.6,0.83792]
[1727351942765,3.79665,2633.9,2633.6,0.83792]
[1727351943162,3.79685,2633.8,2633.5,0.7849]
[1727351943669,3.79709,2633.6,2633.2,4.57355]
[1727351944435,3.79695,2633.7,2633.2,4.57355]
[1727351944639,3.79695,2633.7,2633.2,5.410673]
[1727351946154,3.79695,2633.7,2633.3,0.06508691]
[1727351946554,3.79695,2633.7,2633.2,5.410673]
[1727351946778,3.79689,2633.8,2633.4,0.06500466]
[1727351946983,3.79689,2633.8,2633.3,3.79743]
[1727351946984,3.79694,2633.7,2633.3,3.86251691]
[1727351947179,3.79694,2633.7,2633.3,4.7898359]
[1727351949347,3.7968,2633.8,2633.3,0.06508691]
[1727351949556,3.82327303,2634.0,2632.9,0.8209]
[1727351949557,7.58224303,2633.4,2632.9,0.8209]
[1727351949849,7.58224303,2633.4,2633.0,0.06345321]
[1727351949850,7.58229303,2633.4,2633.0,0.06345321]
[1727351950065,3.79756,2633.3,2633.0,0.06345321]
[1727351950588,3.79752,2633.3,2633.0,0.06345321]
[1727351952257,3.79752,2633.3,2633.0,0.91150453]
[1727351954204,3.79768,2633.2,2633.0,0.91150453]
[1727351954363,3.79768,2633.2,2633.0,0.06345321]
[1727351955085,3.7978,2633.1,2633.0,0.06345321]
[1727351955760,3.79815,2632.9,2632.7,0.7953]
[1727351956683,3.79823,2632.8,2632.6,0.0384425]
[1727351957797,3.79815,2632.9,2632.6,0.0384425]
[1727351957968,3.79815,2632.9,2632.6,0.50169075]
[1727351958168,3.79815,2632.9,2632.6,0.0384425]
[1727351958571,3.79803,2633.0,2632.6,0.0384425]
[1727351959909,3.7979,2633.1,2632.6,0.0384425]
[1727351960069,3.7981,2632.9,2632.6,0.0384425]
[1727351961221,3.7981,2632.9,2632.7,0.06171641]
[1727351965287,7.59627,2632.9,2632.7,0.06171641]
[1727351965627,3.7981,2632.9,2632.7,0.06171641]
[1727351966126,3.79823,2632.8,2632.7,0.06171641]
[1727351977157,3.79823,2632.8,2632.7,0.82881641]
[1727351977647,7.59631,2632.9,2632.7,0.82881641]
[1727351978253,3.79823,2632.8,2632.7,0.82881641]
[1727351988198,2.78595176,2633.8,2632.9,0.8253]
[1727351988387,7.5938,2633.8,2633.2,4.62289]
[1727351988581,4.40841573,2633.8,2633.3,0.819]
[1727351988771,3.79689,2633.8,2633.3,0.88041793]
[1727351989479,3.79662,2634.0,2633.3,0.88041793]
[1727351989743,3.79668,2633.9,2633.3,3.85885793]
[1727351989885,3.79668,2633.9,2633.4,1.55224479]
[1727351990087,3.79668,2633.9,2633.5,0.06125343]
[1727351991990,3.79681,2633.8,2633.5,0.06125343]
[1727351992189,6.79608,2634.3,2633.6,0.7728]
[1727351992190,3.0,2634.3,2633.6,0.7728]
[1727351992392,3.0,2634.3,2633.5,0.60234725]
[1727351992393,3.79578,2634.6,2634.1,0.8069]
[1727351992794,3.79578,2634.6,2634.2,0.0602486]
[1727351992795,3.79573,2634.6,2634.2,0.0602486]
[1727351992997,3.79581,2634.5,2634.2,0.0602486]
[1727351995816,3.7957,2634.6,2634.2,0.0602486]
[1727351996505,3.7957,2634.6,2634.2,0.52661246]
[1727351998931,7.62041886,2635.0,2634.3,3.79596]
[1727351998932,3.79544,2634.8,2634.3,3.79596]
[1727351999288,3.79544,2634.8,2634.4,0.05908104]
[1727352000920,3.83355,2635.0,2634.4,0.05908104]
[1727352001540,3.79533,2634.9,2634.4,0.05908104]
[1727352001737,3.79535,2634.8,2634.4,0.87083253]
[1727352002304,7.5908,2634.8,2634.4,0.87083253]
[1727352002499,3.7955,2634.7,2634.4,0.87083253]
[1727352002917,3.7955,2634.7,2634.4,0.05908104]
[1727352003137,3.79537,2634.8,2634.4,0.05908104]
[1727352003439,7.59054,2634.9,2634.4,3.85489104]
[1727352003644,3.83348,2635.0,2634.5,4.9516091]
[1727352003937,3.79522,2634.9,2634.4,0.05908104]
[1727352004237,3.79578,2634.5,2634.4,0.05908104]
[1727352007336,3.79566,2634.6,2634.4,0.05908104]
[1727352007640,7.59141,2634.6,2634.4,0.05908104]
[1727352007824,3.79578,2634.5,2634.4,0.05908104]
[1727352008553,8.60981347,2634.5,2634.4,0.05908104]
[1727352008765,12.47451987,2634.5,2634.4,0.05908104]
[1727352008938,11.60981347,2634.5,2634.4,0.05908104]
[1727352010545,7.82287461,2634.5,2634.4,0.05908104]
[1727352011634,11.60981347,2634.5,2634.4,0.05908104]
[1727352013139,7.78447461,2634.5,2634.4,0.05908104]
[1727352014277,3.79578,2634.5,2634.4,0.05908104]
[1727352014565,7.58271886,2634.5,2634.4,0.05908104]
[1727352015536,11.13271886,2634.5,2634.4,0.05908104]
[1727352016679,6.79578,2634.5,2634.4,0.05908104]
[1727352016832,0.0384,2634.9,2634.4,0.05908104]
[1727352017038,3.79556,2634.7,2634.4,0.05908104]
[1727352018343,3.79556,2634.7,2634.4,0.52702414]
[1727352018747,3.79556,2634.7,2634.4,0.05908104]
[1727352019042,7.59115,2634.7,2634.4,0.05908104]
[1727352019277,3.79556,2634.7,2634.4,0.05908104]
[1727352019483,7.59113,2634.7,2634.4,0.05908104]
[1727352020476,3.79565,2634.6,2634.4,0.05908104]
[1727352020985,3.79556,2634.7,2634.4,0.05908104]
[1727352022300,3.79556,2634.7,2634.4,0.90663014]
[1727352023257,3.79556,2634.7,2634.4,0.85876603]
[1727352023462,3.79556,2634.7,2634.4,0.01121693]
[1727352023667,3.79556,2634.7,2634.4,0.05141826]
[1727352025139,3.79543,2634.8,2634.4,3.84733826]
[1727352025376,3.79543,2634.8,2634.4,0.05141826]
[1727352025943,3.79571,2634.6,2634.4,0.05141826]
[1727352026350,3.79578,2634.5,2634.4,0.05141826]
[1727352036605,3.83418,2634.5,2634.4,0.05141826]
[1727352036811,3.79593,2634.4,2634.1,0.8292]
[1727352037677,3.79564,2634.6,2634.2,3.7962]
[1727352038374,3.0,2634.5,2634.1,0.8292]
[1727352038684,3.79621,2634.2,2634.1,0.8292]
[1727352041518,3.79535,2634.8,2634.3,3.79598]
[1727352041721,0.39710308,2635.2,2634.5,0.7614]
[1727352042018,3.79495,2635.1,2634.6,4.55697]
[1727352042192,3.79495,2635.1,2634.7,0.7614]
[1727352043000,3.79495,2635.1,2634.7,4.55688]
[1727352043204,3.79495,2635.1,2634.8,0.04762391]
[1727352043441,3.0,2635.2,2634.8,0.04762391]
[1727352043617,3.0,2635.2,2634.7,4.55677]
[1727352043950,3.79496,2635.1,2634.8,0.04762391]
[1727352044105,3.79496,2635.1,2634.7,0.7614]
[1727352044306,3.79496,2635.1,2634.8,0.04762391]
[1727352044845,7.58999,2635.1,2634.9,0.04754175]
[1727352045337,3.79496,2635.1,2635.0,0.04745959]
[1727352045539,3.79496,2635.1,2634.7,0.7614]
[1727352045741,3.79496,2635.1,2634.8,0.04762391]
[1727352046056,3.79435,2635.5,2635.2,0.8169]
[1727352046404,3.79435,2635.5,2635.3,0.04675821]
[1727352046717,3.79436,2635.5,2635.2,0.8169]
[1727352047065,3.79436,2635.5,2635.3,0.04675821]
[1727352047536,7.58882,2635.5,2635.4,0.04667608]
[1727352047738,3.79436,2635.5,2635.2,0.8169]
[1727352047945,3.79436,2635.5,2635.3,0.04675821]
[1727352048139,3.79449,2635.4,2635.2,0.8169]
[1727352048343,3.79449,2635.4,2635.3,0.04675821]
[1727352048544,3.79449,2635.4,2635.2,0.8169]
[1727352048744,3.79449,2635.4,2635.3,0.04675821]
[1727352048907,3.79449,2635.4,2635.2,0.8169]
[1727352049103,3.79449,2635.4,2635.3,0.04675821]
[1727352049338,3.79449,2635.4,2635.2,0.8169]
[1727352049540,3.79443,2635.5,2635.3,0.04618684]
[1727352049744,3.7942,2635.6,2635.2,0.8169]
[1727352049745,3.79449,2635.4,2635.2,0.8169]
[1727352050047,3.79449,2635.4,2635.3,0.04618684]
[1727352050403,3.79449,2635.4,2635.2,0.8169]
[1727352050612,3.79449,2635.4,2635.3,0.04618684]
[1727352050816,4.173939,2635.4,2635.3,0.04618684]
[1727352051019,3.79469,2635.3,2634.9,0.7864]
[1727352052847,7.5894,2635.3,2634.9,0.7864]
[1727352053006,3.79484,2635.2,2634.9,0.7864]
[1727352053208,3.79469,2635.3,2634.9,0.7864]
[1727352053420,3.79492,2635.1,2634.9,0.7864]
[1727352054921,3.79478,2635.2,2634.9,0.7864]
[1727352056060,7.58967,2635.2,2634.9,0.7864]
[1727352056347,3.79478,2635.2,2634.9,0.7864]
[1727352056743,7.58963,2635.2,2634.9,0.7864]
[1727352056949,3.79478,2635.2,2634.9,0.7864]
[1727352057968,7.58964,2635.2,2634.9,0.7864]
[1727352058255,3.79493,2635.1,2635.0,0.04648873]
[1727352058960,3.79492,2635.1,2635.0,0.04648873]
[1727352059935,3.79515,2635.0,2634.6,0.8047]
[1727352060828,7.58994,2635.1,2634.6,4.60032]
[1727352061182,3.79492,2635.1,2634.6,4.60032]
[1727352062088,3.79509,2635.0,2634.6,4.60032]
[1727352063864,3.79509,2635.0,2634.6,0.8047]
[1727352064543,3.79509,2635.0,2634.6,4.60031]
[1727352064779,3.79509,2635.0,2634.6,5.43991]
[1727352065885,3.79509,2635.0,2634.6,1.6443]
[1727352066186,3.79521,2634.9,2634.6,0.8047]
[1727352066375,3.79496,2635.1,2634.6,0.8047]
[1727352066557,3.79515,2635.0,2634.6,0.8047]
[1727352066752,3.79496,2635.1,2634.6,0.8047]
[1727352066753,3.79521,2634.9,2634.6,0.8047]
[1727352067668,3.79543,2634.8,2634.6,0.8047]
[1727352067858,3.79543,2634.8,2634.4,4.58898]
[1727352068058,3.79521,2634.9,2634.4,4.58898]
[1727352068371,3.83354,2635.0,2634.4,4.58898]
[1727352068372,3.79536,2634.8,2634.4,4.58898]
[1727352068578,7.59083,2634.8,2634.4,0.7931]
[1727352068876,3.79536,2634.8,2634.4,0.7931]
[1727352069079,7.59083,2634.8,2634.4,0.7931]
[1727352069378,3.79536,2634.8,2634.4,0.7931]
[1727352070154,3.79536,2634.8,2634.4,4.58896]
[1727352072580,3.79523,2634.9,2634.4,8.38477]
[1727352072781,3.79523,2634.9,2634.5,3.79575]
[1727352073184,3.79523,2634.9,2634.6,0.04404832]
[1727352073408,3.79523,2634.9,2634.4,4.58891]
[1727352073568,3.79523,2634.9,2634.7,0.04396615]
[1727352073882,3.79523,2634.9,2634.4,4.58891]
[1727352074086,3.79523,2634.9,2634.8,0.04388398]
[1727352074691,3.79465,2635.3,2634.6,0.7882]
[1727352074849,3.79528,2634.9,2634.8,0.04388398]
[1727352075050,7.5906,2634.9,2634.7,0.04396615]
[1727352075251,3.79528,2634.9,2634.8,0.04388398]
[1727352075691,3.79528,2634.9,2634.6,0.7882]
[1727352075860,3.79528,2634.9,2634.8,0.04388398]
[1727352076406,3.79528,2634.9,2634.6,0.7882]
[1727352076698,3.79528,2634.9,2634.8,0.04388398]
[1727352076881,3.79528,2634.9,2634.7,0.04396615]
[1727352077084,3.79528,2634.9,2634.8,0.04388398]
[1727352077467,3.79528,2634.9,2634.6,0.7882]
[1727352077667,3.79528,2634.9,2634.8,0.04396148]
[1727352078268,3.79528,2634.9,2634.6,0.7882]
[1727352078606,3.79528,2634.9,2634.7,0.04404365]
[1727352080677,3.79535,2634.8,2634.7,0.04404365]
[1727352081269,3.79571,2634.6,2634.4,0.8042]
[1727352082001,3.79562,2634.7,2634.4,0.8042]
[1727352082170,3.79561,2634.7,2634.4,0.8042]
[1727352082997,7.59119,2634.7,2634.4,0.8042]
[1727352083866,3.79558,2634.7,2634.4,0.8042]
[1727352084220,3.79524,2634.9,2634.5,0.8151]
[1727352084390,3.79509,2635.0,2634.6,3.79561]
[1727352085589,3.79521,2634.9,2634.5,4.61087]
[1727352086997,3.79521,2634.9,2634.5,5.451547]
[1727352088207,3.79521,2634.9,2634.6,0.04412582]
[1727352089477,3.79508,2635.0,2634.6,0.04412582]
[1727352089804,3.79523,2634.9,2634.6,0.04412582]
[1727352093099,3.79538,2634.8,2634.6,0.04412582]
[1727352093917,3.79503,2635.1,2634.7,4.57916]
[1727352094128,2.82836114,2635.6,2635.0,0.8255]
[1727352094277,3.79455,2635.4,2635.0,4.62048]
[1727352094621,3.79455,2635.4,2635.1,0.04346571]
[1727352094977,6.79436,2635.5,2635.1,0.04346571]
[1727352095285,6.79436,2635.5,2635.1,3.83836571]
[1727352095812,3.8324325,2635.8,2635.4,3.79444]
[1727352095974,7.6264325,2635.8,2635.4,3.79442]
[1727352096290,3.8324325,2635.8,2635.5,0.04296562]
[1727352096487,0.0384425,2635.8,2635.6,0.7813]
[1727352096791,0.0384425,2635.8,2635.7,0.04280139]
[1727352097106,0.0384425,2635.8,2635.7,4.58745139]
[1727352097271,0.0384425,2635.8,2635.7,5.04929553]
[1727352098211,0.0384425,2635.8,2635.7,1.25524553]
[1727352098377,0.0384425,2635.8,2635.7,0.79340139]
[1727352099386,0.0384425,2635.8,2635.7,4.58745139]
[1727352100393,0.0384425,2635.8,2635.7,0.79340139]
[1727352104842,3.8323525,2635.8,2635.7,0.04280139]
[1727352105204,3.8323525,2635.8,2635.5,0.827]